bitfinex/quotes_SOLUSD_20241105
["timestamp","ask_amount","ask_price","bid_price","bid_amount"]
[1730796698350,14.61381883,162.22,162.17,20.78011883]
[1730796699141,14.61381883,162.24,162.19,14.61381883]
[1730796699340,14.61381883,162.24,162.2,14.61381883]
[1730796699634,14.61381883,162.21,162.17,36.19601883]
[1730796700131,14.61381883,162.22,162.17,36.19601883]
[1730796700532,14.61381883,162.22,162.18,14.61381883]
[1730796700734,6.1641,162.23,162.18,14.61381883]
[1730796700735,5.0,162.2,162.18,14.61381883]
[1730796700927,5.0,162.2,162.19,65.43577283]
[1730796701148,14.61381883,162.31,162.21,0.37647]
[1730796701361,14.61381883,162.32,162.27,14.61381883]
[1730796701650,14.61381883,162.31,162.26,14.61381883]
[1730796702026,6.1599,162.34,162.26,14.61381883]
[1730796702330,14.61381883,162.31,162.26,14.61381883]
[1730796704566,14.61381883,162.31,162.26,20.77651883]
[1730796705244,14.61381883,162.31,162.26,36.18381883]
[1730796706757,14.61381883,162.29,162.26,15.4073]
[1730796707057,14.61381883,162.29,162.24,14.61381883]
[1730796708549,14.61381883,162.3,162.25,14.61381883]
[1730796709050,14.61381883,162.3,162.25,20.77691883]
[1730796714051,14.61381883,162.3,162.25,36.18521883]
[1730796715434,9.34606855,162.3,162.25,9.34606855]
[1730796717160,9.34606855,162.3,162.26,6.1629]
[1730796721763,15.50726855,162.31,162.26,15.50896855]
[1730796721967,15.8942304,162.35,162.28,9.34606855]
[1730796722149,9.34606855,162.33,162.28,9.34606855]
[1730796722458,9.34606855,162.34,162.29,9.34606855]
[1730796723636,0.3137304,162.35,162.3,15.50746855]
[1730796723637,9.65979895,162.35,162.3,15.50746855]
[1730796723835,0.3137304,162.35,162.3,15.50746855]
[1730796724068,9.65979895,162.35,162.3,15.50746855]
[1730796725067,9.34606855,162.34,162.29,9.34606855]
[1730796725366,9.34606855,162.33,162.28,9.34606855]
[1730796725667,9.34606855,162.31,162.27,21.5689]
[1730796726040,0.3137304,162.35,162.27,21.5689]
[1730796726041,9.34606855,162.32,162.27,30.91496855]
[1730796726571,9.34606855,162.32,162.28,9.34606855]
[1730796727272,9.34606855,162.33,162.28,9.34606855]
[1730796728872,9.34606855,162.33,162.28,15.50786855]
[1730796729055,0.3137304,162.35,162.31,9.34606855]
[1730796730554,9.65979895,162.35,162.3,9.34606855]
[1730796730759,0.3137304,162.35,162.3,30.91066855]
[1730796730953,9.65979895,162.35,162.3,30.91066855]
[1730796732567,9.34606855,162.34,162.3,15.4035]
[1730796733070,9.34606855,162.33,162.3,15.4035]
[1730796734758,9.34606855,162.34,162.3,21.5649]
[1730796737669,15.50596855,162.34,162.3,21.5649]
[1730796738360,9.34606855,162.33,162.3,15.4035]
[1730796738668,15.50596855,162.34,162.3,15.4035]
[1730796738865,9.34606855,162.33,162.3,15.4035]
[1730796739470,0.3137304,162.35,162.31,9.34606855]
[1730796741749,9.65979895,162.35,162.31,6.1608]
[1730796741969,9.34606855,162.34,162.31,6.1608]
[1730796742871,9.65979895,162.35,162.31,6.1608]
[1730796743076,0.3137304,162.35,162.31,6.1608]
[1730796743485,0.3137304,162.35,162.31,21.5634]
[1730796744372,9.65979895,162.35,162.31,21.5634]
[1730796746578,9.34606855,162.34,162.31,15.4026]
[1730796748456,9.34606855,162.33,162.29,6.1618]
[1730796749261,0.3137304,162.35,162.29,30.91236855]
[1730796749262,9.34606855,162.34,162.29,30.91236855]
[1730796752679,15.50596855,162.34,162.29,30.91236855]
[1730796753371,0.3137304,162.35,162.31,9.34606855]
[1730796753569,0.3137304,162.35,162.32,9.34606855]
[1730796753880,9.34606855,162.33,162.29,21.5663]
[1730796754469,9.34606855,162.34,162.29,30.91236855]
[1730796754664,6.4733304,162.35,162.31,9.34606855]
[1730796754665,0.3137304,162.35,162.31,9.34606855]
[1730796755782,9.65979895,162.35,162.31,6.1607]
[1730796756181,9.34606855,162.34,162.29,24.75056855]
[1730796756482,9.34606855,162.32,162.29,15.4045]
[1730796758680,9.34606855,162.32,162.29,21.5663]
[1730796758884,9.34606855,162.33,162.29,21.5663]
[1730796768260,9.34606855,162.32,162.29,15.4045]
[1730796768465,6.16,162.34,162.29,15.4045]
[1730796768786,9.34606855,162.33,162.29,21.5663]
[1730796769885,9.34606855,162.31,162.27,6.1625]
[1730796770087,9.34606855,162.32,162.27,6.1625]
[1730796770262,9.34606855,162.32,162.27,21.5689]
[1730796771089,9.34606855,162.32,162.27,30.91496855]
[1730796772182,9.34606855,162.33,162.28,9.34606855]
[1730796772493,15.50596855,162.34,162.29,9.34606855]
[1730796772692,9.34606855,162.33,162.28,9.34606855]
[1730796773590,9.34606855,162.33,162.29,6.1618]
[1730796773980,15.50636855,162.33,162.29,6.1618]
[1730796775993,0.3137304,162.35,162.29,30.91236855]
[1730796776291,9.65979895,162.35,162.3,9.34606855]
[1730796777281,0.3137304,162.35,162.3,30.91066855]
[1730796777487,20.0,162.38,162.31,9.34606855]
[1730796777488,9.34606855,162.36,162.31,9.34606855]
[1730796777889,9.34606855,162.35,162.31,9.34606855]
[1730796780401,9.34606855,162.35,162.31,15.50696855]
[1730796780705,9.34606855,162.35,162.31,6.1609]
[1730796781087,9.34606855,162.34,162.31,6.1609]
[1730796782096,9.34606855,162.35,162.31,21.5635]
[1730796782281,9.34606855,162.35,162.31,30.90956855]
[1730796782482,9.34606855,162.35,162.31,21.5635]
[1730796783680,9.34606855,162.35,162.31,30.90956855]
[1730796783887,9.34606855,162.36,162.31,30.90956855]
[1730796784598,9.34606855,162.35,162.31,21.5635]
[1730796792109,9.34606855,162.36,162.31,21.5635]
[1730796794506,9.34606855,162.36,162.31,9.34606855]
[1730796794891,9.34606855,162.36,162.3,9.34606855]
[1730796795681,9.34606855,162.36,162.31,6.161]
[1730796797410,15.50526855,162.36,162.31,6.161]
[1730796802510,9.34606855,162.35,162.31,6.161]
[1730796804503,9.34606855,162.34,162.3,21.5646]
[1730796804695,9.34606855,162.33,162.3,21.5646]
[1730796804891,9.34606855,162.31,162.27,15.4061]
[1730796805097,9.34606855,162.3,162.27,15.4061]
[1730796806025,70.0,162.36,162.27,15.4061]
[1730796806026,9.34606855,162.29,162.27,15.4061]
[1730796806199,9.34606855,162.3,162.27,15.4061]
[1730796806920,9.34606855,162.32,162.27,24.75216855]
[1730796808229,6.2883,162.35,162.27,24.75216855]
[1730796808230,9.34606855,162.31,162.27,15.4061]
[1730796810521,9.34606855,162.3,162.27,15.4061]
[1730796814528,9.34606855,162.29,162.24,15.3338]
[1730796814737,21.76089,162.33,162.23,21.5731]
[1730796814738,9.34606855,162.28,162.23,30.91916855]
[1730796815830,6.1619,162.29,162.23,30.91916855]
[1730796816032,9.34606855,162.28,162.23,30.91916855]
[1730796818808,9.34606855,162.26,162.2,23.30467137]
[1730796819009,9.34606855,162.25,162.21,6.1646]
[1730796820529,9.34606855,162.25,162.2,31.33436855]
[1730796820730,9.34606855,162.25,162.2,46.74736855]
[1730796821523,9.34606855,162.27,162.22,9.34606855]
[1730796822516,9.34606855,162.27,162.22,15.51046855]
[1730796823544,15.50876855,162.27,162.22,15.51046855]
[1730796824049,9.34606855,162.26,162.21,9.34606855]
[1730796824214,9.34606855,162.26,162.21,15.51086855]
[1730796824421,9.34606855,162.26,162.21,30.92296855]
[1730796825353,15.50876855,162.27,162.22,9.34606855]
[1730796825819,15.50876855,162.27,162.22,15.51046855]
[1730796829345,0.12549,162.31,162.23,9.34606855]
[1730796829346,9.34606855,162.28,162.23,9.34606855]
[1730796829843,43.876884,162.32,162.23,9.34606855]
[1730796830023,9.34606855,162.29,162.23,9.34606855]
[1730796830222,9.34606855,162.28,162.23,9.34606855]
[1730796830945,9.34606855,162.27,162.22,24.75716855]
[1730796832042,9.34606855,162.27,162.22,30.92156855]
[1730796834834,9.34606855,162.25,162.22,15.4111]
[1730796835234,9.34606855,162.26,162.22,15.4111]
[1730796836231,9.34606855,162.26,162.22,21.5755]
[1730796836762,0.37647,162.31,162.23,9.34606855]
[1730796836940,9.34606855,162.28,162.23,9.34606855]
[1730796837247,9.34606855,162.27,162.22,30.92156855]
[1730796837653,9.34606855,162.26,162.22,21.5755]
[1730796837963,9.34606855,162.26,162.22,15.4111]
[1730796840854,6.163,162.26,162.22,24.75716855]
[1730796842356,15.50906855,162.26,162.22,15.4111]
[1730796843057,6.163,162.26,162.22,30.92156855]
[1730796845954,6.163,162.26,162.22,15.4111]
[1730796846546,9.34606855,162.27,162.22,15.4111]
[1730796847537,9.34606855,162.27,162.22,21.5755]
[1730796849935,9.34606855,162.27,162.22,24.75716855]
[1730796850429,6.162,162.29,162.22,24.75716855]
[1730796850758,9.34606855,162.28,162.23,9.34606855]
[1730796851258,9.34606855,162.28,162.22,24.75716855]
[1730796852944,6.00642229,162.29,162.23,9.34606855]
[1730796853144,15.35249084,162.29,162.23,9.34606855]
[1730796853555,9.34606855,162.28,162.23,9.34606855]
[1730796854561,9.34606855,162.28,162.23,6.1638]
[1730796855536,9.34606855,162.28,162.23,15.50986855]
[1730796858138,9.34606855,162.31,162.26,9.34606855]
[1730796858336,9.34606855,162.31,162.27,9.34606855]
[1730796858562,9.34606855,162.32,162.23,27.9598]
[1730796858755,9.34606855,162.32,162.27,9.34606855]
[1730796858951,9.34606855,162.31,162.23,27.9598]
[1730796859157,9.34606855,162.31,162.27,9.34606855]
[1730796859860,9.34606855,162.31,162.26,6.1626]
[1730796860156,9.34606855,162.31,162.26,15.50866855]
[1730796861155,15.50706855,162.31,162.26,15.50866855]
[1730796864576,15.4752,162.33,162.26,15.50866855]
[1730796864949,9.34606855,162.31,162.26,15.50866855]
[1730796866569,9.34606855,162.28,162.25,21.5709]
[1730796866749,37.3842742,162.32,162.25,15.4077]
[1730796866750,9.34606855,162.27,162.25,15.4077]
[1730796866954,9.34606855,162.29,162.25,21.571]
[1730796867668,9.34606855,162.27,162.23,6.1638]
[1730796867870,9.34606855,162.27,162.22,15.4108]
[1730796868058,9.34606855,162.25,162.2,28.41348448]
[1730796868256,70.12549,162.31,162.2,12.59038448]
[1730796868257,9.34606855,162.24,162.2,12.59038448]
[1730796868472,9.34606855,162.25,162.2,15.51086855]
[1730796868654,9.34606855,162.25,162.2,30.92386855]
[1730796870169,9.34606855,162.23,162.2,21.5778]
[1730796870365,9.34606855,162.23,162.2,15.413]
[1730796870882,9.34606855,162.24,162.2,15.413]
[1730796871960,6.1633,162.25,162.2,15.413]
[1730796872152,9.34606855,162.24,162.2,15.413]
[1730796872556,0.12549,162.27,162.2,15.413]
[1730796872875,9.34606855,162.25,162.2,30.92426855]
[1730796873175,15.4511,162.28,162.23,9.34606855]
[1730796873373,16.3775,162.32,162.24,9.34606855]
[1730796873595,9.34606855,162.3,162.25,9.34606855]
[1730796874974,9.34606855,162.29,162.24,15.50936855]
[1730796875769,9.34606855,162.29,162.24,30.91856855]
[1730796877471,16.3775,162.32,162.26,9.34606855]
[1730796877987,9.34606855,162.3,162.25,9.34606855]
[1730796878759,9.34606855,162.3,162.25,15.50916855]
[1730796879178,15.50746855,162.3,162.25,15.50916855]
[1730796880368,15.1046,162.36,162.27,9.34606855]
[1730796880582,15.1046,162.36,162.25,21.5714]
[1730796880583,9.34606855,162.33,162.28,9.34606855]
[1730796880868,9.34606855,162.31,162.25,21.5714]
[1730796881059,9.34606855,162.31,162.26,9.34606855]
[1730796881259,23.776884,162.35,162.27,9.34606855]
[1730796881459,9.34606855,162.33,162.28,9.34606855]
[1730796882782,15.1046,162.36,162.28,30.91346855]
[1730796882989,9.34606855,162.33,162.28,30.91346855]
[1730796884374,9.34606855,162.32,162.28,30.91346855]
[1730796884873,21.264,162.36,162.29,9.34606855]
[1730796885085,9.34606855,162.34,162.29,9.34606855]
[1730796886195,15.50596855,162.34,162.29,15.50776855]
[1730796886398,6.1599,162.34,162.29,15.50776855]
[1730796886606,15.50596855,162.34,162.29,15.50776855]
[1730796887400,9.34606855,162.34,162.29,15.50776855]
[1730796889015,9.34606855,162.34,162.29,30.91226855]
[1730796890108,9.34606855,162.33,162.29,21.5662]
[1730796890285,9.34606855,162.33,162.29,21.5663]
[1730796890880,15.1046,162.36,162.29,30.91236855]
[1730796891176,9.34606855,162.34,162.29,30.91236855]
[1730796891587,15.1046,162.36,162.29,30.91236855]
[1730796891787,9.34606855,162.34,162.29,30.91236855]
[1730796892304,15.1046,162.36,162.3,9.34606855]
[1730796892494,6.1595,162.35,162.31,9.34606855]
[1730796892685,6.1595,162.35,162.31,15.50706855]
[1730796893109,9.34606855,162.36,162.32,9.34606855]
[1730796893294,6.159,162.37,162.31,30.90966855]
[1730796893497,9.34606855,162.36,162.31,30.90966855]
[1730796893797,9.34606855,162.35,162.31,21.5636]
[1730796894519,16.0153,162.4,162.31,24.74866855]
[1730796894692,6.1568,162.42,162.35,9.34606855]
[1730796894887,9.34606855,162.4,162.35,9.34606855]
[1730796895210,6.1568,162.42,162.35,9.34606855]
[1730796895420,6.1568,162.42,162.36,9.34606855]
[1730796895585,9.34606855,162.41,162.36,9.34606855]
[1730796896211,9.34606855,162.4,162.32,6.53]
[1730796896513,15.50366855,162.4,162.35,9.34606855]
[1730796896823,6.1576,162.4,162.36,9.34606855]
[1730796897601,15.50366855,162.4,162.35,15.50526855]
[1730796900612,9.34606855,162.39,162.34,9.34606855]
[1730796901015,9.34606855,162.38,162.33,30.90696855]
[1730796901208,9.34606855,162.39,162.33,30.90696855]
[1730796901514,9.34606855,162.39,162.34,9.34606855]
[1730796901715,15.50436855,162.39,162.34,9.34606855]
[1730796903293,9.34606855,162.37,162.33,21.5609]
[1730796904493,9.34606855,162.38,162.33,30.90696855]
[1730796905194,9.34606855,162.37,162.33,21.5609]
[1730796905390,9.34606855,162.37,162.32,9.34606855]
[1730796905611,9.34606855,162.35,162.3,24.38765659]
[1730796905801,9.34606855,162.34,162.3,24.38765659]
[1730796906394,9.34606855,162.34,162.3,30.54905659]
[1730796906814,9.34606855,162.35,162.3,39.89512514]
[1730796908605,15.50476855,162.37,162.32,9.34606855]
[1730796908815,6.1587,162.37,162.33,9.34606855]
[1730796909113,9.34606855,162.38,162.3,30.54905659]
[1730796909317,9.34606855,162.4,162.35,9.34606855]
[1730796910317,9.34606855,162.39,162.35,15.50536855]
[1730796910516,9.34606855,162.38,162.34,15.3994]
[1730796911119,9.34606855,162.37,162.3,8.98435659]
[1730796911410,9.34606855,162.37,162.32,9.34606855]
[1730796913322,9.34606855,162.37,162.33,9.34606855]
[1730796915121,9.34606855,162.38,162.33,9.34606855]
[1730796915897,9.34606855,162.39,162.34,9.34606855]
[1730796916219,6.1583,162.38,162.34,9.34606855]
[1730796917223,15.50436855,162.38,162.33,9.34606855]
[1730796919121,9.34606855,162.37,162.33,9.34606855]
[1730796919935,15.50436855,162.38,162.33,9.34606855]
[1730796920315,6.1583,162.38,162.34,9.34606855]
[1730796920512,20.0,162.41,162.36,9.34606855]
[1730796920703,9.34606855,162.41,162.36,9.34606855]
[1730796921029,16.6543,162.42,162.36,9.34606855]
[1730796921206,9.34606855,162.41,162.36,9.34606855]
[1730796923023,9.34606855,162.41,162.37,9.34606855]
[1730796923323,9.34606855,162.38,162.33,27.7453]
[1730796923646,9.34606855,162.38,162.33,37.09136855]
[1730796924133,9.34606855,162.38,162.33,30.93116855]
[1730796924308,9.34606855,162.38,162.35,15.3988]
[1730796924621,9.34606855,162.39,162.35,15.3988]
[1730796925526,9.34606855,162.38,162.35,15.3988]
[1730796925732,9.34606855,162.38,162.33,37.09116855]
[1730796926535,9.34606855,162.38,162.33,52.49186855]
[1730796929423,9.34606855,162.39,162.34,9.34606855]
[1730796930733,9.34606855,162.4,162.34,21.5594]
[1730796930939,9.34606855,162.41,162.36,9.34606855]
[1730796931837,9.34606855,162.39,162.35,6.1594]
[1730796933038,15.50386855,162.4,162.35,15.50546855]
[1730796934023,9.34606855,162.39,162.34,24.74576855]
[1730796934313,9.34606855,162.39,162.34,30.90566855]
[1730796934520,15.50386855,162.4,162.35,9.34606855]
[1730796934839,9.34606855,162.38,162.34,15.3997]
[1730796937637,9.34606855,162.38,162.34,21.5596]
[1730796938131,9.34606855,162.38,162.34,15.3997]
[1730796938534,9.34606855,162.38,162.34,21.5596]
[1730796939721,9.34606855,162.39,162.34,21.5596]
[1730796940332,9.34606855,162.39,162.34,30.90566855]
[1730796941445,15.50406855,162.39,162.34,30.90566855]
[1730796944147,15.50406855,162.39,162.35,9.34606855]
[1730796944635,6.158,162.39,162.35,9.34606855]
[1730796945017,20.3137304,162.43,162.36,9.34606855]
[1730796945212,9.34606855,162.41,162.36,9.34606855]
[1730796945656,9.34606855,162.41,162.37,9.34606855]
[1730796946447,9.34606855,162.41,162.34,21.5596]
[1730796946448,9.34606855,162.41,162.36,9.34606855]
[1730796947331,0.3137304,162.43,162.36,9.34606855]
[1730796947642,9.34606855,162.41,162.36,9.34606855]
[1730796947945,9.34606855,162.4,162.35,15.50536855]
[1730796948443,9.34606855,162.41,162.36,9.34606855]
[1730796949031,9.34606855,162.38,162.35,6.1593]
[1730796951123,9.34606855,162.38,162.34,6.1598]
[1730796951327,9.34606855,162.37,162.32,9.34606855]
[1730796952362,9.34606855,162.37,162.33,6.1602]
[1730796954852,9.34606855,162.36,162.33,6.1602]
[1730796956047,9.34606855,162.36,162.32,21.5622]
[1730796959948,15.50516855,162.36,162.32,21.5622]
[1730796960851,9.34606855,162.35,162.32,21.5622]
[1730796961165,9.34606855,162.35,162.32,15.4016]
[1730796961727,9.34606855,162.36,162.32,15.4016]
[1730796964135,9.34606855,162.36,162.32,21.5622]
[1730796965547,15.50476855,162.37,162.32,24.74766855]
[1730796966736,15.50476855,162.37,162.32,30.90826855]
[1730796969162,9.34606855,162.37,162.32,30.90826855]
[1730796969655,9.34606855,162.38,162.33,9.34606855]
[1730796971555,15.50456855,162.38,162.33,15.50626855]
[1730796972467,9.34606855,162.38,162.33,15.50626855]
[1730796972766,9.34606855,162.4,162.35,9.34606855]
[1730796972947,6.4704304,162.43,162.36,9.34606855]
[1730796973136,6.4704304,162.43,162.35,9.34606855]
[1730796973137,9.34606855,162.4,162.35,9.34606855]
[1730796973644,9.34606855,162.39,162.34,30.90566855]
[1730796976471,9.34606855,162.38,162.33,9.34606855]
[1730796977763,9.34606855,162.38,162.34,6.1599]
[1730796978565,9.34606855,162.36,162.32,21.561]
[1730796979253,9.34606855,162.37,162.32,30.90706855]
[1730796980272,15.50446855,162.38,162.33,9.34606855]
[1730796980678,15.50446855,162.38,162.33,6.16]
[1730796982843,9.34606855,162.37,162.32,24.74676855]
[1730796983069,9.34606855,162.37,162.32,30.90726855]
[1730796983259,9.34606855,162.36,162.32,30.90726855]
[1730796983772,9.34606855,162.36,162.32,21.5612]
[1730796985257,9.34606855,162.36,162.32,24.74676855]
[1730796986351,15.50496855,162.37,162.32,24.74676855]
[1730796986777,15.50496855,162.37,162.32,30.90736855]
[1730796987277,6.158,162.39,162.33,9.34606855]
[1730796987484,15.50406855,162.39,162.34,9.34606855]
[1730796987774,9.34606855,162.38,162.33,9.34606855]
[1730796988185,9.34606855,162.37,162.33,9.34606855]
[1730796988355,9.34606855,162.38,162.33,9.34606855]
[1730796988757,9.34606855,162.36,162.3,6.1611]
[1730796988975,9.34606855,162.35,162.3,15.50716855]
[1730796989166,9.34606855,162.35,162.3,30.91066855]
[1730796990264,9.34606855,162.36,162.31,9.34606855]
[1730796990469,9.34606855,162.36,162.3,21.5646]
[1730796990663,9.34606855,162.36,162.31,9.34606855]
[1730796991381,9.34606855,162.35,162.3,21.5646]
[1730796991679,9.34606855,162.35,162.3,30.91066855]
[1730796992555,9.34606855,162.36,162.31,9.34606855]
[1730796993754,9.34606855,162.36,162.31,15.50686855]
[1730796994276,15.50516855,162.36,162.31,15.50686855]
[1730796995460,15.50516855,162.36,162.32,9.34606855]
[1730796996460,15.50516855,162.36,162.31,9.34606855]
[1730796996682,15.50516855,162.36,162.31,15.50686855]
[1730796999284,9.34606855,162.39,162.35,9.34606855]
[1730797000184,15.4511,162.4,162.31,21.5634]
[1730797000185,9.34606855,162.38,162.31,21.5634]
[1730797000369,9.34606855,162.38,162.33,9.34606855]
[1730797000572,9.34606855,162.37,162.31,21.5634]
[1730797000890,9.34606855,162.36,162.32,9.34606855]
[1730797001265,9.34606855,162.36,162.32,15.50656855]
[1730797001990,9.34606855,162.36,162.32,6.1605]
[1730797002586,9.34606855,162.37,162.32,9.34606855]
[1730797003494,9.34606855,162.36,162.32,9.34606855]
[1730797003703,9.34606855,162.36,162.32,15.50656855]
[1730797004193,15.50486855,162.37,162.33,9.34606855]
[1730797004566,15.50486855,162.37,162.32,30.90816855]
[1730797008993,9.34606855,162.35,162.3,6.1611]
[1730797009297,9.34606855,162.35,162.3,15.50716855]
[1730797009499,9.34606855,162.35,162.3,30.91066855]
[1730797011576,9.34606855,162.42,162.37,9.34606855]
[1730797011771,9.34606855,162.41,162.31,0.12549]
[1730797011997,9.34606855,162.41,162.36,9.34606855]
[1730797012179,0.3137304,162.43,162.36,9.34606855]
[1730797012383,9.34606855,162.42,162.37,9.34606855]
[1730797013102,6.1572,162.41,162.37,9.34606855]
[1730797014607,9.34606855,162.41,162.37,9.34606855]
[1730797016199,15.50346855,162.41,162.37,9.34606855]
[1730797017703,15.50346855,162.41,162.36,9.34606855]
[1730797018615,9.34606855,162.4,162.36,9.34606855]
[1730797018919,9.34606855,162.4,162.36,15.50516855]
[1730797019099,15.50346855,162.41,162.36,15.50516855]
[1730797020514,9.34606855,162.4,162.35,9.34606855]
[1730797022287,9.34606855,162.41,162.36,9.34606855]
[1730797024117,6.1576,162.4,162.36,9.34606855]
[1730797025496,6.1576,162.4,162.37,9.34606855]
[1730797025798,15.50326855,162.41,162.37,9.34606855]
[1730797028424,0.3137304,162.43,162.37,9.34606855]
[1730797028594,0.3137304,162.43,162.37,15.50456855]
[1730797028917,9.34606855,162.42,162.37,9.34606855]
[1730797032323,0.3137304,162.43,162.39,9.34606855]
[1730797032704,9.65979895,162.43,162.39,9.34606855]
[1730797033417,15.81629895,162.43,162.39,9.34606855]
[1730797033597,15.81629895,162.43,162.38,9.34606855]
[1730797033896,15.81629895,162.43,162.39,9.34606855]
[1730797034510,15.81629895,162.43,162.38,9.34606855]
[1730797035494,9.34606855,162.42,162.38,9.34606855]
[1730797035700,15.50296855,162.42,162.38,9.34606855]
[1730797036235,6.1569,162.42,162.38,9.34606855]
[1730797036915,6.1569,162.42,162.37,9.34606855]
[1730797036916,15.50296855,162.42,162.37,9.34606855]
[1730797037117,9.34606855,162.41,162.35,21.5582]
[1730797037325,9.34606855,162.4,162.36,9.34606855]
[1730797037898,9.34606855,162.4,162.35,15.3988]
[1730797038101,9.34606855,162.39,162.35,15.3988]
[1730797038303,6.1569,162.42,162.36,9.34606855]
[1730797038620,0.3137304,162.43,162.4,9.34606855]
[1730797039121,0.3137304,162.43,162.39,9.34606855]
[1730797041511,6.4703304,162.43,162.39,9.34606855]
[1730797042711,15.81639895,162.43,162.37,21.5553]
[1730797042919,9.34606855,162.42,162.37,24.74296855]
[1730797043109,9.34606855,162.42,162.38,9.34606855]
[1730797044033,15.81639895,162.43,162.38,9.34606855]
[1730797044620,6.4703304,162.43,162.38,15.50436855]
[1730797044928,15.81639895,162.43,162.38,9.34606855]
[1730797045424,15.81639895,162.43,162.37,21.5553]
[1730797045603,15.81639895,162.43,162.38,9.34606855]
[1730797048634,9.34606855,162.42,162.37,24.74296855]
[1730797049925,6.4703304,162.43,162.37,24.74296855]
[1730797050118,6.4703304,162.43,162.39,9.34606855]
[1730797050319,6.4703304,162.43,162.4,9.34606855]
[1730797052722,9.34606855,162.44,162.4,9.34606855]
[1730797052930,85.2461,162.49,162.42,9.34606855]
[1730797052931,15.2461,162.49,162.42,9.34606855]
[1730797053145,0.3137304,162.51,162.45,9.34606855]
[1730797053320,0.3137304,162.51,162.44,9.34606855]
[1730797053516,0.3137304,162.51,162.41,22.5685]
[1730797053517,9.34606855,162.47,162.41,22.5685]
[1730797053709,9.34606855,162.46,162.41,22.5685]
[1730797054034,9.34606855,162.45,162.38,20.12549]
[1730797054341,0.3137304,162.51,162.41,9.34606855]
[1730797054513,9.34606855,162.46,162.41,9.34606855]
[1730797055206,9.34606855,162.46,162.41,15.50306855]
[1730797055630,9.34606855,162.46,162.41,9.34606855]
[1730797055832,9.34606855,162.46,162.4,6.1575]
[1730797056035,9.34606855,162.46,162.41,9.34606855]
[1730797057326,15.50136855,162.46,162.41,15.50326855]
[1730797058213,15.50136855,162.46,162.42,9.34606855]
[1730797058613,15.50136855,162.46,162.39,21.67769]
[1730797058813,6.1553,162.46,162.42,9.34606855]
[1730797059224,6.155,162.47,162.43,9.34606855]
[1730797059735,9.34606855,162.48,162.44,9.34606855]
[1730797060140,0.3137304,162.51,162.46,9.34606855]
[1730797060445,9.34606855,162.49,162.44,9.34606855]
[1730797060942,0.3137304,162.51,162.47,9.34606855]
[1730797062320,0.3137304,162.51,162.46,9.34606855]
[1730797062321,9.65979895,162.51,162.46,9.34606855]
[1730797063028,0.3137304,162.51,162.46,9.34606855]
[1730797063431,0.3137304,162.51,162.47,9.34606855]
[1730797064444,9.65979895,162.51,162.45,15.3893]
[1730797064650,9.65979895,162.51,162.46,9.34606855]
[1730797065221,9.34606855,162.49,162.45,15.3893]
[1730797065828,9.34606855,162.49,162.45,9.34606855]
[1730797066051,9.34606855,162.5,162.45,9.34606855]
[1730797066225,9.65979895,162.51,162.46,9.34606855]
[1730797066429,0.3137304,162.51,162.46,9.34606855]
[1730797066622,0.3137304,162.51,162.48,9.34606855]
[1730797067660,0.3137304,162.51,162.47,9.34606855]
[1730797067944,0.3137304,162.51,162.47,15.50096855]
[1730797070438,9.65979895,162.51,162.47,6.1549]
[1730797070648,9.34606855,162.5,162.46,6.1553]
[1730797071548,6.4671304,162.51,162.47,9.34606855]
[1730797072459,9.65979895,162.51,162.46,21.5437]
[1730797072755,0.3137304,162.51,162.48,9.34606855]
[1730797073634,0.3137304,162.51,162.49,9.34606855]
[1730797074431,0.3137304,162.51,162.5,9.34606855]
[1730797076363,0.3137304,162.51,162.5,15.49986855]
[1730797077461,0.3137304,162.51,162.49,24.73156855]
[1730797077763,0.3137304,162.51,162.49,30.88576855]
[1730797078059,0.3137304,162.51,162.49,15.3855]
[1730797078266,0.3137304,162.51,162.5,9.34606855]
[1730797079256,0.3137304,162.51,162.49,24.73156855]
[1730797079559,0.3137304,162.51,162.5,9.34606855]
[1730797080165,0.3137304,162.51,162.5,15.49986855]
[1730797081034,0.3137304,162.51,162.5,9.34606855]
[1730797081438,0.3137304,162.51,162.49,21.5396]
[1730797081671,0.3137304,162.51,162.49,30.88566855]
[1730797082360,0.3137304,162.51,162.5,9.34606855]
[1730797083067,0.3137304,162.51,162.49,21.5396]
[1730797083362,0.3137304,162.51,162.5,9.34606855]
[1730797083548,0.3137304,162.51,162.5,53.49942255]
[1730797083748,0.3137304,162.51,162.5,59.883254]
[1730797084546,0.3137304,162.51,162.5,69.22932255]
[1730797084749,0.3137304,162.51,162.5,75.38312255]
[1730797085858,0.3137304,162.51,162.5,66.037054]
[1730797086059,0.3137304,162.51,162.5,75.38312255]
[1730797090070,0.3137304,162.51,162.5,65.911564]
[1730797090264,0.3137304,162.51,162.5,51.48074855]
[1730797090443,0.3137304,162.51,162.5,75.38312255]
[1730797092268,0.3137304,162.51,162.5,35.75084855]